bitfinex-derivatives/quotes_SOLF0:USTF0_20250416
["timestamp","ask_amount","ask_price","bid_price","bid_amount"]
[1744762673484,2.098,125.8,125.75,15.95171014]
[1744762673782,7.9484,125.83,125.79,7.9498]
[1744762674083,0.05886281,125.82,125.8,0.05375596]
[1744762674276,8.00736281,125.82,125.8,0.05375596]
[1744762674886,7.9491,125.81,125.8,0.05375596]
[1744762675983,8.00756281,125.82,125.8,0.05375596]
[1744762676183,0.05886281,125.82,125.8,0.05375596]
[1744762676578,0.05886281,125.82,125.8,8.00315596]
[1744762678388,0.05886281,125.82,125.8,0.05375596]
[1744762678982,0.05886281,125.82,125.8,8.00315596]
[1744762679589,0.05886281,125.82,125.81,7.9491]
[1744762681686,2.0271,125.86,125.85,7.9466]
[1744762681888,2.1723,125.88,125.83,47.99171014]
[1744762682186,6.2917,125.92,125.85,15.95171014]
[1744762682592,6.2917,125.92,125.87,15.95171014]
[1744762682884,0.05158577,125.91,125.89,15.95171014]
[1744762683095,4.065,125.98,125.89,48.04831168]
[1744762683393,4.065,125.98,125.94,7.9405]
[1744762683786,12.0038,125.98,125.94,7.9405]
[1744762683985,4.065,125.98,125.94,7.9405]
[1744762684189,0.05284569,125.97,125.95,0.05019753]
[1744762684893,7.99214569,125.97,125.95,0.05019753]
[1744762685093,0.05284569,125.97,125.95,0.05019753]
[1744762685781,32.04,125.96,125.83,377.95171014]
[1744762685983,32.04,125.96,125.86,32.04]
[1744762686185,15.95171014,125.93,125.83,39.9673]
[1744762686388,15.95171014,125.91,125.83,39.9673]
[1744762686690,0.05360238,125.88,125.86,7.9456]
[1744762686898,32.02,125.95,125.87,47.97171014]
[1744762687193,7.9416,125.93,125.89,7.9437]
[1744762687493,32.02,125.95,125.89,7.9437]
[1744762687789,32.02,125.95,125.91,0.05278134]
[1744762688097,0.05846068,125.93,125.87,32.02]
[1744762688295,8.00046068,125.93,125.88,7.9443]
[1744762688483,0.05846068,125.93,125.89,15.95171014]
[1744762688689,0.05846068,125.93,125.9,32.02]
[1744762688890,8.00006068,125.93,125.9,32.07149035]
[1744762689091,0.05846068,125.93,125.9,32.07149035]
[1744762689285,0.05846068,125.93,125.9,0.05149035]
[1744762689491,7.9428,125.91,125.9,0.05149035]
[1744762693691,32.02,125.92,125.84,32.02]
[1744762693893,17.71660561,125.91,125.81,32.02]
[1744762694093,7.9475,125.84,125.81,32.02]
[1744762694488,32.02,125.89,125.81,39.9688]
[1744762694783,0.05543831,125.86,125.84,0.05042237]
[1744762696394,7.9466,125.85,125.84,0.05042237]
[1744762697993,7.9484,125.82,125.81,32.02]
[1744762698195,32.02,125.86,125.78,603.96]
[1744762698396,32.02,125.86,125.78,32.02]
[1744762698695,7.9491,125.81,125.78,39.9706]
[1744762699094,8.00086743,125.81,125.78,40.02435821]
[1744762699397,0.05176743,125.81,125.79,7.9499]
[1744762700395,0.05176743,125.81,125.8,7.9497]
[1744762700698,0.05176743,125.81,125.78,32.07375821]
[1744762700899,0.05176743,125.81,125.79,7.95]
[1744762702397,0.05176743,125.81,125.8,7.9497]
[1744762702597,0.05176743,125.81,125.78,32.07375821]
[1744762702790,0.05176743,125.81,125.78,40.02435821]
[1744762704499,0.05176743,125.81,125.78,0.05375821]
[1744762704899,7.9503,125.79,125.78,0.05375821]
[1744762706803,0.05176743,125.81,125.78,0.05375821]
[1744762708405,7.95,125.8,125.78,0.05375821]
[1744762712204,7.9503,125.79,125.78,0.05375821]
[1744762712402,0.05176743,125.81,125.78,0.05375821]
[1744762712802,0.05176743,125.81,125.79,7.9498]
[1744762712994,0.05176743,125.81,125.78,32.09375821]
[1744762713307,0.05176743,125.81,125.78,49.8233528]
[1744762713502,0.05176743,125.81,125.8,7.9497]
[1744762715107,1.9874,125.85,125.78,49.8233528]
[1744762715302,2.0349,125.87,125.82,17.72959459]
[1744762715507,34.106,125.89,125.85,7.9461]
[1744762715806,7.945,125.88,125.82,49.76959459]
[1744762715995,7.945,125.88,125.84,0.05514388]
[1744762716197,0.05114126,125.86,125.85,7.9466]
[1744762716402,0.05114126,125.86,125.84,0.05514388]
[1744762716597,0.05114126,125.86,125.84,8.00204388]
[1744762716798,0.05114126,125.86,125.84,0.05514388]
[1744762717008,7.99734126,125.86,125.84,0.05514388]
[1744762718114,0.05114126,125.86,125.84,0.05514388]
[1744762718709,0.05114126,125.86,125.85,7.9466]
[1744762722520,0.05114126,125.86,125.84,0.05514388]
[1744762723114,0.05114126,125.86,125.85,7.9466]
[1744762724015,0.05114126,125.86,125.84,8.00194388]
[1744762724222,0.05114126,125.86,125.84,0.05514388]
[1744762725422,0.05114126,125.86,125.85,7.9466]
[1744762728534,0.05114126,125.86,125.84,0.05514388]
[1744762728928,0.05114126,125.86,125.84,8.00224388]
[1744762729231,7.99714126,125.86,125.84,0.05514388]
[1744762729431,0.05114126,125.86,125.84,0.05514388]
[1744762729626,2.1699,125.85,125.84,0.05514388]
[1744762730528,10.1165,125.85,125.84,0.05514388]
[1744762731035,2.1699,125.85,125.84,0.05514388]
[1744762731533,10.1165,125.85,125.84,0.05514388]
[1744762731930,2.067,125.92,125.84,7.99514388]
[1744762732132,7.9413,125.94,125.91,7.9425]
[1744762732335,2.067,125.95,125.88,31.96]
[1744762733035,0.05741567,125.93,125.9,0.05188226]
[1744762733233,0.05741567,125.93,125.91,7.9425]
[1744762734032,0.05741567,125.93,125.9,0.05188226]
[1744762734339,0.05741567,125.93,125.92,7.9421]
[1744762734537,0.05741567,125.93,125.9,0.05188226]
[1744762734738,0.05741567,125.93,125.91,7.9423]
[1744762735436,0.05741567,125.93,125.92,7.9421]
[1744762735637,0.05741567,125.93,125.9,0.05188226]
[1744762736041,7.99921567,125.93,125.9,7.99508226]
[1744762737238,0.05741567,125.93,125.91,7.9427]
[1744762737840,7.9424,125.92,125.9,0.05188226]
[1744762738440,0.05741567,125.93,125.9,0.05188226]
[1744762738838,0.05741567,125.93,125.92,7.9421]
[1744762740542,2.01,125.99,125.92,31.94]
[1744762740743,2.01,125.99,125.93,17.72959459]
[1744762741038,2.01,125.99,125.92,31.94]
[1744762741243,7.939,125.97,125.92,31.94]
[1744762741450,51.67959459,125.99,125.92,31.94]
[1744762741644,0.05452639,125.96,125.93,0.05633513]
[1744762741838,17.72959459,125.94,125.81,571.82]
[1744762742041,17.72959459,125.92,125.82,33.39348371]
[1744762742249,49.66959459,125.92,125.82,31.94]
[1744762742647,31.94,125.92,125.76,31.94]
[1744762742949,0.06095947,125.85,125.83,0.0569542]
[1744762743144,0.05575271,125.85,125.74,75.97199364]
[1744762743343,17.72959459,125.86,125.75,17.72959459]
[1744762743541,17.72959459,125.84,125.74,74.20389364]
[1744762743745,17.72959459,125.82,125.73,40.96]
[1744762743940,1.9914,125.81,125.73,40.96]
[1744762744139,0.06065525,125.78,125.76,0.05255825]
[1744762745145,40.96,125.87,125.77,40.96]
[1744762745449,42.9514,125.87,125.78,17.72959459]
[1744762745650,7.9471,125.85,125.79,7.9499]
[1744762745950,7.9471,125.85,125.78,17.72959459]
[1744762746146,42.9514,125.87,125.78,17.72959459]
[1744762746348,0.06035751,125.84,125.81,0.05500517]
[1744762747751,8.00775751,125.84,125.81,0.05500517]
[1744762747953,0.06035751,125.84,125.81,28.86914301]
[1744762748252,0.06035751,125.84,125.81,69.84914301]
[1744762748652,0.06035751,125.84,125.83,7.9478]
[1744762749649,40.98,125.93,125.86,7.9456]
[1744762749849,4.2618,125.93,125.86,28.81413784]
[1744762750054,7.9428,125.91,125.86,28.81413784]
[1744762750254,7.9428,125.91,125.87,7.9449]
[1744762750455,4.2618,125.93,125.86,28.81413784]
[1744762750655,4.2618,125.93,125.85,40.98]
[1744762750857,0.05037226,125.91,125.88,0.05914796]
[1744762751157,7.9461,125.86,125.82,40.98]
[1744762751559,28.81413784,125.9,125.82,40.98]
[1744762751756,7.9463,125.86,125.82,40.98]
[1744762752058,0.0574712,125.85,125.83,0.05147093]
[1744762752356,8.0040712,125.85,125.83,0.05147093]
[1744762752852,0.0574712,125.85,125.83,0.05147093]
[1744762755162,0.0574712,125.85,125.83,7.99927093]
[1744762756460,0.0574712,125.85,125.84,7.9472]
[1744762758860,0.0574712,125.85,125.83,7.99897093]
[1744762760259,0.0574712,125.85,125.84,7.9472]
[1744762760460,43.1445,125.92,125.84,28.81413784]
[1744762760658,71.95863784,125.92,125.82,40.98]
[1744762761059,43.1445,125.92,125.82,69.79413784]
[1744762761358,0.05239871,125.88,125.86,7.996265]
[1744762761559,0.05239871,125.88,125.86,0.050365]
[1744762761762,0.05239871,125.88,125.86,7.995965]
[1744762762965,0.05239871,125.88,125.86,0.050365]
[1744762763563,0.05239871,125.88,125.79,641.77413784]
[1744762763760,40.98,125.9,125.79,641.77413784]
[1744762763960,40.98,125.9,125.81,28.81413784]
[1744762764263,40.98,125.9,125.79,641.77413784]
[1744762764452,69.79413784,125.9,125.79,641.77413784]
[1744762764654,7.9476,125.84,125.83,0.05669763]
[1744762765960,0.0558944,125.86,125.83,0.05669763]
[1744762766864,7.9468,125.85,125.83,0.05669763]
[1744762767564,7.9472,125.84,125.83,0.05669763]
[1744762767764,0.0558944,125.86,125.83,0.05669763]
[1744762768164,7.9469,125.85,125.83,0.05669763]
[1744762768766,0.0558944,125.86,125.83,0.05669763]
[1744762768767,0.0558944,125.86,125.85,7.9466]
[1744762769164,0.0558944,125.86,125.84,17.71847422]
[1744762769466,0.0558944,125.86,125.84,7.9469]
[1744762771266,8.0018944,125.86,125.84,7.9469]
[1744762771468,0.0558944,125.86,125.83,41.03669763]
[1744762771768,0.0558944,125.86,125.83,0.05669763]
[1744762772069,7.9472,125.84,125.83,0.05669763]
[1744762772469,6.473,125.85,125.77,58.69847422]
[1744762773163,47.553,125.85,125.77,40.98]
[1744762773368,7.9497,125.81,125.8,0.06095532]
[1744762774468,0.05117691,125.82,125.8,0.06095532]
[1744762774969,614.42323032,125.94,125.81,58.79847422]
[1744762775269,4.2307,125.91,125.81,41.08]
[1744762775468,4.2307,125.91,125.83,17.71847422]
[1744762775969,0.05994381,125.88,125.86,0.05218878]
[1744762776171,0.05994381,125.88,125.86,7.99778878]
[1744762776668,0.05994381,125.88,125.87,7.9453]
[1744762777670,0.05994381,125.88,125.86,7.99778878]
[1744762778064,0.05994381,125.88,125.86,0.05218878]
[1744762779673,0.05994381,125.88,125.87,7.9453]
[1744762781278,0.05994381,125.88,125.86,7.99778878]
[1744762781473,0.05994381,125.88,125.86,0.05218878]
[1744762781774,0.05994381,125.88,125.86,7.99808878]
[1744762782077,0.05994381,125.88,125.86,0.05218878]
[1744762782376,0.05994381,125.88,125.86,7.99778878]
[1744762782564,0.05994381,125.88,125.86,0.05218878]
[1744762782975,0.05994381,125.88,125.87,7.9453]
[1744762787275,8.00464381,125.88,125.86,0.05218878]
[1744762787481,0.05994381,125.88,125.86,0.05218878]
[1744762787676,0.05994381,125.88,125.85,41.08]
[1744762787677,0.05994381,125.88,125.82,41.08]
[1744762787879,7.9469,125.85,125.82,7.9479]
[1744762788782,8.00059447,125.85,125.82,8.00782295]
[1744762789279,0.05369447,125.85,125.82,0.05992295]
[1744762790584,0.05369447,125.85,125.83,7.9473]
[1744762793779,8.00029447,125.85,125.82,8.00812295]
[1744762794990,7.9472,125.84,125.82,8.00812295]
[1744762795888,8.00059447,125.85,125.82,8.00812295]
[1744762797092,7.9478,125.83,125.82,0.05992295]
[1744762797300,4.1082,125.84,125.73,68.44946629]
[1744762797793,7.95,125.8,125.77,7.9515]
[1744762798097,4.1082,125.84,125.77,7.9515]
[1744762798297,0.059357,125.82,125.79,0.05677955]
[1744762799497,0.059357,125.82,125.79,8.00707955]
[1744762799693,0.059357,125.82,125.79,0.05677955]
[1744762800391,0.059357,125.82,125.74,39.66]
[1744762800592,21.85176808,125.84,125.74,39.66]
[1744762801391,0.05203304,125.8,125.78,0.05647247]
[1744762801598,7.9504,125.79,125.78,0.05647247]
[1744762801799,0.05203304,125.8,125.78,0.05647247]
[1744762803299,7.9503,125.79,125.78,0.05647247]
[1744762803498,0.05203304,125.8,125.78,0.05647247]
[1744762804002,7.9503,125.79,125.78,0.05647247]
[1744762804597,7.9523,125.76,125.74,39.66]
[1744762804993,17.74356808,125.8,125.72,7.9545]
[1744762805396,39.68,125.81,125.75,7.9526]
[1744762805596,2.1065,125.83,125.77,0.02643198]
[1744762805796,7.951,125.78,125.77,0.02643198]
[1744762806000,0.05608701,125.79,125.77,0.02643198]
[1744762806401,0.05608701,125.79,125.72,39.68]
[1744762806601,57.42356808,125.8,125.72,47.6346]
[1744762807000,7.9526,125.76,125.72,47.6346]
[1744762807201,57.42356808,125.8,125.72,47.6346]
[1744762807510,0.05483484,125.77,125.72,47.6346]
[1744762807806,7.9526,125.76,125.72,47.6346]
[1744762808206,0.05483484,125.77,125.72,47.6346]
[1744762808409,7.9532,125.75,125.72,47.6346]
[1744762808902,7.9538,125.74,125.72,39.68]
[1744762809108,8.00894849,125.74,125.72,39.68]
[1744762810510,0.05514849,125.74,125.69,39.68]
[1744762810710,0.05514849,125.74,125.66,41.5622]
[1744762810910,0.05609244,125.71,125.66,41.5622]
[1744762811110,8.01179244,125.71,125.67,7.9576]
[1744762811311,8.01179244,125.71,125.66,41.5622]
[1744762811607,8.01179244,125.71,125.68,7.9571]
[1744762811814,0.05609244,125.71,125.67,17.74356808]
[1744762812310,0.05609244,125.71,125.69,7.9562]
[1744762812514,0.05609244,125.71,125.67,17.74356808]
[1744762813218,0.05609244,125.71,125.7,7.956]
[1744762814017,4.2219,125.77,125.72,7.9547]
[1744762814817,7.9533,125.75,125.72,7.9547]
[1744762815017,4.2219,125.77,125.7,39.7]
[1744762815210,0.05732952,125.75,125.72,0.05609244]
[1744762815414,7.9541,125.73,125.72,0.05609244]
[1744762816217,7.9538,125.74,125.72,0.05609244]
[1744762817517,7.9541,125.73,125.72,0.05609244]
[1744762817816,0.05732952,125.75,125.72,8.01079244]
[1744762818016,7.9535,125.74,125.72,0.05609244]
[1744762818407,8.01062952,125.75,125.72,0.05609244]
[1744762819012,8.01062952,125.75,125.72,8.01059244]
[1744762819614,0.05732952,125.75,125.72,0.05609244]
[1744762820015,0.05732952,125.75,125.67,39.7]
[1744762820219,7.9551,125.72,125.69,7.9566]
[1744762820417,4.2219,125.77,125.67,39.7]
[1744762820718,4.2219,125.77,125.7,7.9557]
[1744762821118,7.9544,125.73,125.7,7.9557]
[1744762822119,7.9554,125.71,125.69,7.9564]
[1744762822324,0.05045503,125.71,125.67,39.7]
[1744762822712,0.05045503,125.71,125.68,17.74356808]
[1744762824224,0.05045503,125.71,125.7,17.74356808]
[1744762824526,0.05045503,125.71,125.7,25.69956808]
[1744762826326,7.9525,125.76,125.74,7.9535]
[1744762826526,7.9525,125.76,125.71,39.24]
[1744762827020,2.0617,125.77,125.71,39.24]
[1744762827426,8.00876131,125.75,125.73,0.05045503]
[1744762828121,8.00876131,125.75,125.73,8.00425503]
[1744762829523,0.05566131,125.75,125.73,8.00425503]
[1744762829725,0.05566131,125.75,125.74,7.9535]
[1744762830426,2.2006,125.79,125.76,7.9517]
[1744762830626,39.24,125.85,125.76,17.74356808]
[1744762830821,7.9483,125.83,125.76,17.74356808]
[1744762831025,45.4443,125.85,125.76,17.74356808]
[1744762831522,45.4443,125.85,125.79,0.05512611]
[1744762831523,0.05858797,125.82,125.79,0.05512611]
[1744762831925,0.05858797,125.82,125.79,8.00542611]
[1744762832428,0.05858797,125.82,125.8,7.9497]
[1744762832922,0.05858797,125.82,125.79,0.05512611]
[1744762833127,0.05858797,125.82,125.79,39.29512611]
[1744762833621,0.05858797,125.82,125.8,17.74356808]
[1744762834028,0.05858797,125.82,125.81,7.9491]
[1744762836026,0.05858797,125.82,125.81,47.1891]
[1744762837827,7.9458,125.87,125.84,7.9466]
[1744762838026,2.1904,125.89,125.82,17.74356808]
[1744762838825,0.05133959,125.87,125.84,0.05255643]
[1744762839634,0.05133959,125.87,125.85,7.9463]
[1744762840335,0.05133959,125.87,125.86,7.9459]
[1744762840532,0.05133959,125.87,125.86,47.1659]
[1744762841331,0.05133959,125.87,125.84,0.05255643]
[1744762841831,7.99693959,125.87,125.84,7.99975643]
[1744762842223,7.99693959,125.87,125.84,0.05255643]
[1744762842428,7.9459,125.86,125.84,0.05255643]
[1744762843436,7.9466,125.85,125.84,0.05255643]
[1744762844436,7.9475,125.84,125.81,7.9488]
[1744762845339,7.948,125.83,125.8,47.1694]
[1744762845542,0.05308099,125.83,125.8,0.05285153]
[1744762846042,7.9494,125.81,125.8,0.05285153]
[1744762846543,7.9494,125.81,125.76,39.22]
[1744762846743,7.9486,125.82,125.76,39.22]
[1744762847144,7.9486,125.82,125.79,7.9498]
[1744762847546,8.00024932,125.82,125.79,8.00546179]
[1744762848249,7.9491,125.81,125.79,0.05566179]
[1744762848644,0.05164932,125.82,125.79,0.05566179]
[1744762849043,2.0064,125.86,125.8,37.82]
[1744762849444,2.0064,125.86,125.83,7.9475]
[1744762849645,2.0064,125.86,125.8,37.82]
[1744762849949,9.9526,125.86,125.82,7.9479]
[1744762850249,9.9526,125.86,125.83,0.06035509]
[1744762850250,0.05213526,125.85,125.83,0.06035509]
[1744762850444,2.13783526,125.85,125.77,37.82]
[1744762850751,7.9477,125.84,125.77,37.82]
[1744762851047,2.0857,125.85,125.77,37.82]
[1744762851253,2.0857,125.85,125.79,7.9501]
[1744762851452,0.06015654,125.83,125.81,0.05156281]
[1744762851747,7.9484,125.82,125.81,0.05156281]
[1744762852344,0.06015654,125.83,125.81,0.05156281]
[1744762853252,8.00825654,125.83,125.81,0.05156281]
[1744762853749,0.06015654,125.83,125.81,0.05156281]
[1744762854147,0.06015654,125.83,125.81,37.87156281]
[1744762854552,0.06015654,125.83,125.82,7.9484]
[1744762855848,4.2562,125.89,125.82,17.74356808]
[1744762856352,7.9451,125.88,125.85,7.9461]
[1744762856545,7.9451,125.88,125.84,37.82]
[1744762856952,0.05427536,125.87,125.85,0.05755654]
[1744762858147,0.05427536,125.87,125.86,7.9459]
[1744762861450,0.05427536,125.87,125.85,11.13054218]
[1744762861451,2.1414,125.94,125.85,11.13054218]
[1744762861651,4.3306,125.96,125.91,11.07298564]
[1744762862455,0.05143265,125.95,125.92,0.0599898]
[1744762862657,0.05143265,125.95,125.93,7.9411]
[1744762863457,0.05143265,125.95,125.94,7.9409]
[1744762864053,0.05143265,125.95,125.94,45.7609]
[1744762866462,42.0521,126.02,125.97,7.939]
[1744762866757,44.061,126.02,125.97,7.939]
[1744762866955,6.241,126.02,125.94,55.52076808]
[1744762867260,6.241,126.02,125.96,17.70076808]
[1744762867456,0.05562412,126.0,125.99,7.9374]
[1744762868865,0.05562412,126.0,125.98,7.9909551]
[1744762871870,0.05562412,126.0,125.99,7.9377]
[1744762874670,2.1452,126.07,126.03,7.935]
[1744762874867,6.2827,126.07,126.03,7.935]
[1744762875170,7.9334,126.06,126.0,17.70076808]
[1744762875364,6.2827,126.07,125.98,37.78]
[1744762875365,6.2827,126.07,126.04,7.9343]
[1744762875868,14.27137111,126.07,126.04,7.98960395]
[1744762876065,12.12617111,126.07,126.05,7.9339]
[1744762876270,0.05567111,126.07,126.04,17.75607203]
[1744762876773,7.9311,126.1,126.04,17.75607203]
[1744762877064,2.0853,126.11,126.06,17.70076808]
[1744762877272,463.370585,126.2,126.1,17.70076808]
[1744762877467,463.370585,126.2,126.16,17.70076808]
[1744762877670,0.05566615,126.19,126.18,7.9254]
[1744762878067,231.685292,126.21,126.17,37.01056827]
[1744762878267,4.1988,126.23,126.18,17.70076808]
[1744762879172,0.05761484,126.22,126.18,17.70076808]
[1744762879568,0.05761484,126.22,126.2,17.70076808]
[1744762879764,261.77758928,126.27,126.21,36.94]
[1744762879969,259.73808928,126.27,126.22,17.70076808]
[1744762880170,259.73808928,126.27,126.24,17.70076808]
[1744762880364,259.73808928,126.27,126.25,36.94]
[1744762880569,231.685292,126.28,126.26,17.70076808]
[1744762880771,121.39179058,126.28,126.26,17.75217947]
[1744762880969,12.18326507,126.28,126.26,17.75217947]
[1744762881169,12.18326507,126.28,126.27,7.9201]
[1744762881170,1.127e-05,126.28,126.27,7.9201]
[1744762881366,6.1894,126.38,126.26,17.75217947]
[1744762881575,6.1894,126.38,126.29,17.70076808]
[1744762881875,6.1894,126.38,126.31,17.70076808]
[1744762882075,6.1894,126.38,126.32,36.92]
[1744762882378,7.9168,126.33,126.3,36.92]
[1744762882576,7.9168,126.33,126.32,0.05047857]
[1744762882780,0.05377207,126.35,126.3,36.92]
[1744762883277,0.05377207,126.35,126.27,36.92]
[1744762883476,17.70076808,126.35,126.27,36.92]
[1744762883672,43.1094,126.38,126.28,17.70076808]
[1744762883969,0.05789195,126.34,126.32,17.75816235]
[1744762884174,0.01059195,126.34,126.33,36.92]
[1744762884565,0.01059195,126.34,126.32,0.05739427]
[1744762884764,0.01059195,126.34,126.32,36.95739427]
[1744762885166,0.01059195,126.34,126.32,54.65816235]
[1744762885367,2.1464,126.42,126.32,54.65816235]
[1744762885567,2.1464,126.42,126.32,54.60076808]
[1744762885774,7.913,126.39,126.32,54.60076808]
[1744762886377,0.06009086,126.37,126.34,0.05846985]
[1744762886877,0.06009086,126.37,126.34,62.05846985]
[1744762888278,0.06009086,126.37,126.34,79.75923793]
[1744762888474,0.06009086,126.37,126.36,17.70076808]
[1744762888676,0.06009086,126.37,126.36,36.88]
[1744762889578,0.06009086,126.37,126.34,0.05846985]
[1744762890984,7.97439086,126.37,126.34,0.05846985]
[1744762891783,7.9146,126.36,126.34,0.05846985]
[1744762891982,0.06009086,126.37,126.34,0.05846985]
[1744762892482,54.58076808,126.42,126.34,0.05846985]
[1744762892483,51.95278402,126.42,126.34,0.05846985]
[1744762892678,1.37680013,126.54,126.34,826.0]
[1744762892885,17.70076808,126.51,126.4,17.70076808]
[1744762893083,2.0619,126.5,126.42,17.70076808]
[1744762893386,2.1672,126.53,126.43,36.86]
[1744762893581,0.05877475,126.49,126.47,0.05561805]
[1744762895393,0.05877475,126.49,126.47,36.91561805]
[1744762895593,0.05877475,126.49,126.47,98.91561805]
[1744762896083,2.1672,126.53,126.47,54.61638613]
[1744762896286,4.1389,126.59,126.54,7.9026]
[1744762896485,2.1232,126.61,126.53,17.70076808]
[1744762896990,2.1232,126.61,126.52,36.84]
[1744762897194,0.05192748,126.58,126.55,0.05272137]
[1744762898092,7.95302748,126.58,126.55,0.05272137]
[1744762898491,0.05192748,126.58,126.55,0.05272137]
[1744762899891,0.05192748,126.58,126.57,7.9013]
[1744762902093,0.05192748,126.58,126.55,0.05272137]
[1744762903197,0.05192748,126.58,126.55,7.95502137]
[1744762903404,0.05192748,126.58,126.55,0.05272137]
[1744762903606,2.1232,126.61,126.55,0.05272137]
[1744762904106,2.184,126.6,126.55,0.05272137]
[1744762904505,7.901,126.58,126.55,0.05272137]
[1744762904710,65.30666105,126.58,126.49,36.82]
[1744762904898,28.48666105,126.56,126.49,36.82]
[1744762905102,28.48666105,126.56,126.5,7.9056]
[1744762905402,30.67066105,126.6,126.5,7.9056]
[1744762905403,28.48666105,126.6,126.5,28.48666105]
[1744762905611,0.05576757,126.56,126.54,7.95496498]
[1744762905804,7.9013,126.58,126.54,0.05216498]
[1744762906115,0.0592311,126.56,126.55,7.9025]
[1744762906303,0.0555752,126.57,126.54,0.05428836]
[1744762906806,0.0555752,126.57,126.56,7.902]
[1744762907606,2.1232,126.61,126.59,7.9]
[1744762908202,2.1232,126.61,126.58,7.9005]
[1744762908507,2.1232,126.61,126.57,36.34]
[1744762908701,0.05785043,126.6,126.58,0.05199797]
[1744762908901,0.05785043,126.6,126.59,7.9]
[1744762909607,0.05785043,126.6,126.59,7.9001]
[1744762911005,5.043e-05,126.6,126.59,7.9001]
[1744762912014,5.043e-05,126.6,126.59,69.9001]
[1744762912213,2.1443,126.67,126.66,7.8957]
[1744762912415,40.5014,126.71,126.62,36.34]
[1744762912809,7.8934,126.7,126.62,36.34]
[1744762913211,0.05722458,126.67,126.65,0.05448532]
[1744762914110,0.05722458,126.67,126.62,36.34]
[1744762914414,7.95252458,126.67,126.63,7.8973]
[1744762914714,0.05722458,126.67,126.63,7.8973]
[1744762915016,7.95262458,126.67,126.64,0.05708515]
[1744762915210,0.05722458,126.67,126.59,36.32]
[1744762915416,28.48666105,126.66,126.59,36.32]
[1744762915611,2.0451,126.65,126.59,36.32]
[1744762916018,7.897,126.64,126.6,7.8991]
[1744762916312,0.05230496,126.63,126.61,0.05905792]
[1744762916509,0.05230496,126.63,126.59,36.32]
[1744762916716,2.18950496,126.63,126.59,36.32]
[1744762917110,10.08750496,126.63,126.59,44.22]
[1744762917314,2.18950496,126.63,126.59,7.9]
[1744762917614,10.08740496,126.63,126.6,0.05192055]
[1744762917815,2.18950496,126.63,126.6,0.05192055]
[1744762918318,597.36666105,126.74,126.61,28.48666105]
[1744762918613,7.8931,126.71,126.63,28.48666105]
[1744762918815,7.8931,126.71,126.67,7.8947]
[1744762919317,0.05672697,126.7,126.68,7.9531252]
[1744762919509,0.05672697,126.7,126.68,0.0591252]
[1744762920307,7.8959,126.66,126.62,7.8978]
[1744762920508,28.48666105,126.64,126.53,28.48666105]
[1744762920716,28.48666105,126.62,126.51,36.32]
[1744762920910,7.9007,126.59,126.55,7.9023]
[1744762921110,28.48666105,126.62,126.55,7.9023]
[1744762921311,0.05692667,126.6,126.57,0.05615773]
[1744762921610,7.95642667,126.6,126.59,9.1211593]
[1744762921815,28.54358772,126.6,126.57,0.05615773]
[1744762922016,28.48666105,126.58,126.55,105.36975143]
[1744762922214,28.48666105,126.56,126.55,104.36455143]
[1744762922411,7.9068,126.49,126.43,568.56]
[1744762922720,36.32,126.55,126.45,28.48666105]
[1744762923013,7.9057,126.5,126.49,0.05648149]
[1744762923217,36.32,126.5,126.49,0.05648149]
[1744762923521,0.05319744,126.51,126.49,0.05648149]
[1744762924116,7.9057,126.5,126.49,0.05648149]
[1744762924823,36.39236105,126.5,126.49,8.149e-05]
[1744762925021,36.38666105,126.5,126.43,25.23355769]
[1744762925221,28.48666105,126.47,126.43,25.23355769]
[1744762925421,36.39436105,126.47,126.43,25.23355769]
[1744762925616,7.9077,126.47,126.43,25.23355769]
[1744762925814,64.80666105,126.49,126.43,25.23355769]
[1744762926018,7.9092,126.45,126.43,25.23355769]
[1744762926213,7.9092,126.45,126.43,25.28651859]
[1744762926416,0.05594541,126.47,126.43,25.28651859]
[1744762926618,28.48666105,126.45,126.43,25.28651859]
[1744762926817,36.34,126.44,126.43,25.28651859]
[1744762927023,36.34,126.44,126.43,0.0529609]
[1744762927223,0.05594541,126.47,126.43,0.0529609]
[1744762927724,0.05594541,126.47,126.43,28.53962195]
[1744762927917,0.05594541,126.47,126.43,0.0529609]
[1744762928322,0.05594541,126.47,126.43,28.53962195]